[Event "Titled Tuesday Blitz May 4 2021"]
[White "Grunberg, Mihai-Lucian"]
[Black "Gabdushev, Ruslan"]
[WhiteFideId "1204149"]
[BlackFideId "4137833"]
[WhiteElo "2364"]
[BlackElo "2312"]
[Result "1/2-1/2"]
[Round "08"]
[TimeControl "180+1"]
[Date "2021.05.04"]
[WhiteClock "0:00:24"]
[BlackClock "0:00:10"]

1. Nf3 {[%clk 0:03:00]}  Nc6 {[%clk 0:02:59]} 2. c4 {[%clk 0:03:01]}  e5 {[%clk 0:02:57]} 3. d4 {[%clk 0:02:59]}  exd4 {[%clk 0:02:57]} 4. Nxd4 {[%clk 0:02:59]}  Bc5 {[%clk 0:02:56]} 5. Nb3 {[%clk 0:02:58]}  Be7 {[%clk 0:02:55]} 6. g3 {[%clk 0:02:57]}  d6 {[%clk 0:02:54]} 7. Bg2 {[%clk 0:02:56]}  h5 {[%clk 0:02:53]} 8. h4 {[%clk 0:02:56]}  Nf6 {[%clk 0:02:49]} 9. O-O {[%clk 0:02:55]}  Bg4 {[%clk 0:02:49]} 10. Nc3 {[%clk 0:02:54]}  Qd7 {[%clk 0:02:49]} 11. Bg5 {[%clk 0:02:51]}  Bh3 {[%clk 0:02:47]} 12. Bxh3 {[%clk 0:02:46]}  Qxh3 {[%clk 0:02:46]} 13. Bxf6 {[%clk 0:02:45]}  Bxf6 {[%clk 0:02:45]} 14. Nd5 {[%clk 0:02:45]}  O-O-O {[%clk 0:02:44]} 15. Nxf6 {[%clk 0:02:31]}  gxf6 {[%clk 0:02:44]} 16. Qd5 {[%clk 0:02:30]}  Ne5 {[%clk 0:02:26]} 17. Rac1 {[%clk 0:02:26]}  Rhg8 {[%clk 0:02:23]} 18. Qg2 {[%clk 0:02:25]}  Qe6 {[%clk 0:02:15]} 19. Nd4 {[%clk 0:02:24]}  Qg4 {[%clk 0:02:07]} 20. Rfd1 {[%clk 0:02:20]}  f5 {[%clk 0:01:51]} 21. Nf3 {[%clk 0:01:42]}  f4 {[%clk 0:01:34]} 22. Rd4 {[%clk 0:01:40]}  Rde8 {[%clk 0:00:58]} 23. Rxf4 {[%clk 0:01:37]}  Qxf4 {[%clk 0:00:57]} 24. gxf4 {[%clk 0:01:36]}  Nxf3+ {[%clk 0:00:56]} 25. exf3 {[%clk 0:01:35]}  Rxg2+ {[%clk 0:00:56]} 26. Kxg2 {[%clk 0:01:36]}  Re2 {[%clk 0:00:55]} 27. Rb1 {[%clk 0:01:33]}  Kd7 {[%clk 0:00:54]} 28. a3 {[%clk 0:01:29]}  Ke6 {[%clk 0:00:53]} 29. Kg3 {[%clk 0:01:27]}  Kf5 {[%clk 0:00:51]} 30. b4 {[%clk 0:01:25]}  Ra2 {[%clk 0:00:45]} 31. Rb3 {[%clk 0:01:23]}  Ra1 {[%clk 0:00:45]} 32. Rd3 {[%clk 0:01:18]}  Rg1+ {[%clk 0:00:43]} 33. Kh2 {[%clk 0:01:18]}  Rg7 {[%clk 0:00:38]} 34. Rd4 {[%clk 0:01:10]}  f6 {[%clk 0:00:29]} 35. c5 {[%clk 0:01:09]}  dxc5 {[%clk 0:00:27]} 36. bxc5 {[%clk 0:01:09]}  c6 {[%clk 0:00:28]} 37. a4 {[%clk 0:01:07]}  a5 {[%clk 0:00:20]} 38. Rd6 {[%clk 0:01:04]}  Rg6 {[%clk 0:00:18]} 39. Rd7 {[%clk 0:01:03]}  Kxf4 {[%clk 0:00:17]} 40. Rxb7 {[%clk 0:01:03]}  Kxf3 {[%clk 0:00:17]} 41. Rc7 {[%clk 0:01:01]}  Rg4 {[%clk 0:00:16]} 42. Rxc6 {[%clk 0:00:59]}  Rxh4+ {[%clk 0:00:16]} 43. Kg1 {[%clk 0:00:56]}  Rg4+ {[%clk 0:00:15]} 44. Kf1 {[%clk 0:00:54]}  Rf4 {[%clk 0:00:15]} 45. Re6 {[%clk 0:00:48]}  Rxa4 {[%clk 0:00:14]} 46. Rxf6+ {[%clk 0:00:48]}  Ke4 {[%clk 0:00:13]} 47. Rh6 {[%clk 0:00:45]}  Ra1+ {[%clk 0:00:11]} 48. Kg2 {[%clk 0:00:44]}  Kd5 {[%clk 0:00:11]} 49. Rxh5+ {[%clk 0:00:43]}  Kc6 {[%clk 0:00:11]} 50. f4 {[%clk 0:00:37]}  a4 {[%clk 0:00:11]} 51. Re5 {[%clk 0:00:31]}  a3 {[%clk 0:00:11]} 52. f5 {[%clk 0:00:30]}  a2 {[%clk 0:00:11]} 53. Re2 {[%clk 0:00:30]}  Kxc5 {[%clk 0:00:10]} 54. Re5+ {[%clk 0:00:27]}  Kd6 {[%clk 0:00:09]} 55. Ra5 {[%clk 0:00:26]}  Ke7 {[%clk 0:00:09]} 56. Kh2 {[%clk 0:00:25]}  Kf6 {[%clk 0:00:09]} 57. Kg2 {[%clk 0:00:25]}  Kg5 {[%clk 0:00:09]} 58. Kh2 {[%clk 0:00:25]}  Kf6 {[%clk 0:00:09]} 59. Kg2 {[%clk 0:00:24]}  Kg5 {[%clk 0:00:10]} 60. Kh2 {[%clk 0:00:24]}  Kf6 {[%clk 0:00:10]} 1/2-1/2


[Site "https://www.chess.com"]

[Event "Titled Tuesday Blitz May 4 2021"]
[White "Gusarov, Grigory"]
[Black "Urazayev, Arystanbek"]
[WhiteFideId "24102172"]
[BlackFideId "13709810"]
[WhiteElo "2285"]
[BlackElo "2321"]
[Result "1-0"]
[Round "08"]
[TimeControl "180+1"]
[Date "2021.05.04"]
[WhiteClock "0:01:19"]
[BlackClock "0:00:01"]

1. e4 {[%clk 0:03:00]}  c5 {[%clk 0:03:00]} 2. Nf3 {[%clk 0:03:00]}  e6 {[%clk 0:03:01]} 3. b3 {[%clk 0:03:00]}  b6 {[%clk 0:02:58]} 4. Bb2 {[%clk 0:03:00]}  Bb7 {[%clk 0:02:58]} 5. Nc3 {[%clk 0:03:00]}  Nf6 {[%clk 0:02:58]} 6. e5 {[%clk 0:03:00]}  Nd5 {[%clk 0:02:57]} 7. Nxd5 {[%clk 0:02:59]}  Bxd5 {[%clk 0:02:58]} 8. Bc4 {[%clk 0:02:59]}  Bxc4 {[%clk 0:02:49]} 9. bxc4 {[%clk 0:02:59]}  Be7 {[%clk 0:02:50]} 10. O-O {[%clk 0:02:58]}  O-O {[%clk 0:02:49]} 11. Qe2 {[%clk 0:02:56]}  Nc6 {[%clk 0:02:49]} 12. d3 {[%clk 0:02:56]}  f5 {[%clk 0:02:44]} 13. Bc3 {[%clk 0:02:50]}  Qe8 {[%clk 0:02:25]} 14. Rfe1 {[%clk 0:02:47]}  Qh5 {[%clk 0:02:24]} 15. Nd2 {[%clk 0:02:46]}  Qxe2 {[%clk 0:02:23]} 16. Rxe2 {[%clk 0:02:47]}  g5 {[%clk 0:02:20]} 17. a4 {[%clk 0:02:46]}  Kf7 {[%clk 0:02:19]} 18. a5 {[%clk 0:02:43]}  bxa5 {[%clk 0:02:20]} 19. Nb3 {[%clk 0:02:42]}  g4 {[%clk 0:01:51]} 20. g3 {[%clk 0:02:34]}  h5 {[%clk 0:01:50]} 21. Nxa5 {[%clk 0:02:32]}  Nd4 {[%clk 0:01:50]} 22. Bxd4 {[%clk 0:02:30]}  cxd4 {[%clk 0:01:51]} 23. Nb3 {[%clk 0:02:31]}  Bb4 {[%clk 0:01:51]} 24. Ra6 {[%clk 0:02:29]}  Bc3 {[%clk 0:01:45]} 25. Kg2 {[%clk 0:02:29]}  Ke7 {[%clk 0:01:43]} 26. f3 {[%clk 0:02:29]}  f4 {[%clk 0:01:38]} 27. Rf2 {[%clk 0:02:25]}  h4 {[%clk 0:01:04]} 28. fxg4 {[%clk 0:02:14]}  f3+ {[%clk 0:01:04]} 29. Rxf3 {[%clk 0:02:05]}  h3+ {[%clk 0:00:45]} 30. Kf2 {[%clk 0:02:05]}  Be1+ {[%clk 0:00:27]} 31. Ke2 {[%clk 0:02:05]}  Rxf3 {[%clk 0:00:28]} 32. Kxf3 {[%clk 0:02:05]}  Rf8+ {[%clk 0:00:29]} 33. Ke2 {[%clk 0:01:54]}  Rf2+ {[%clk 0:00:29]} 34. Kxe1 {[%clk 0:01:54]}  Rxh2 {[%clk 0:00:29]} 35. Nxd4 {[%clk 0:01:52]}  Rg2 {[%clk 0:00:14]} 36. Nf3 {[%clk 0:01:51]}  Rxc2 {[%clk 0:00:12]} 37. Rxa7 {[%clk 0:01:43]}  h2 {[%clk 0:00:11]} 38. Nxh2 {[%clk 0:01:42]}  Rxh2 {[%clk 0:00:11]} 39. c5 {[%clk 0:01:42]}  Kd8 {[%clk 0:00:11]} 40. d4 {[%clk 0:01:36]}  Rg2 {[%clk 0:00:10]} 41. Ra3 {[%clk 0:01:32]}  Kc7 {[%clk 0:00:09]} 42. g5 {[%clk 0:01:32]}  Kd8 {[%clk 0:00:07]} 43. g6 {[%clk 0:01:21]}  Ke7 {[%clk 0:00:07]} 44. Kf1 {[%clk 0:01:21]}  Rh2 {[%clk 0:00:03]} 45. Ra8 {[%clk 0:01:21]}  d5 {[%clk 0:00:01]} 46. g7 {[%clk 0:01:19]}  Kd7 {[%clk 0:00:01]} 47. g8=Q {[%clk 0:01:19]} 1-0


[Site "https://www.chess.com"]

[Event "Titled Tuesday Blitz May 4 2021"]
[White "Harshavardhan G B"]
[Black "Berezin, Viktor"]
[WhiteFideId "25059009"]
[BlackFideId "14107872"]
[WhiteElo "1825"]
[BlackElo "2310"]
[Result "1-0"]
[Round "08"]
[TimeControl "180+1"]
[Date "2021.05.04"]
[WhiteClock "0:01:00"]
[BlackClock "0:00:02"]

1. d4 {[%clk 0:03:00]}  Nf6 {[%clk 0:02:59]} 2. c4 {[%clk 0:03:01]}  g6 {[%clk 0:02:59]} 3. Nc3 {[%clk 0:03:02]}  Bg7 {[%clk 0:02:59]} 4. e4 {[%clk 0:03:02]}  d6 {[%clk 0:02:59]} 5. Nf3 {[%clk 0:03:01]}  O-O {[%clk 0:02:58]} 6. Be2 {[%clk 0:03:01]}  Nc6 {[%clk 0:02:54]} 7. d5 {[%clk 0:03:01]}  Nb8 {[%clk 0:02:43]} 8. Be3 {[%clk 0:02:59]}  e5 {[%clk 0:02:43]} 9. Nd2 {[%clk 0:02:57]}  a5 {[%clk 0:02:42]} 10. g4 {[%clk 0:02:55]}  Na6 {[%clk 0:02:40]} 11. h4 {[%clk 0:02:54]}  Nd7 {[%clk 0:02:38]} 12. h5 {[%clk 0:02:54]}  Ndc5 {[%clk 0:02:36]} 13. f3 {[%clk 0:02:53]}  f5 {[%clk 0:02:23]} 14. hxg6 {[%clk 0:02:52]}  hxg6 {[%clk 0:02:22]} 15. a3 {[%clk 0:02:51]}  f4 {[%clk 0:02:21]} 16. Bf2 {[%clk 0:02:50]}  Bd7 {[%clk 0:02:14]} 17. Qc2 {[%clk 0:02:44]}  g5 {[%clk 0:02:13]} 18. O-O-O {[%clk 0:02:43]}  c6 {[%clk 0:02:03]} 19. Rh2 {[%clk 0:02:34]}  cxd5 {[%clk 0:01:48]} 20. Nxd5 {[%clk 0:02:34]}  Rc8 {[%clk 0:01:42]} 21. Rdh1 {[%clk 0:02:32]}  b5 {[%clk 0:01:40]} 22. Kb1 {[%clk 0:02:29]}  Ne6 {[%clk 0:01:33]} 23. c5 {[%clk 0:02:22]}  Naxc5 {[%clk 0:01:31]} 24. Nb3 {[%clk 0:02:18]}  a4 {[%clk 0:01:21]} 25. Nxc5 {[%clk 0:02:17]}  Nxc5 {[%clk 0:01:22]} 26. Bxc5 {[%clk 0:02:12]}  Rxc5 {[%clk 0:01:22]} 27. Qd2 {[%clk 0:02:10]}  Be6 {[%clk 0:01:20]} 28. Rh7 {[%clk 0:02:01]}  Bxd5 {[%clk 0:01:03]} 29. exd5 {[%clk 0:02:02]}  e4 {[%clk 0:01:04]} 30. fxe4 {[%clk 0:01:42]}  f3 {[%clk 0:01:04]} 31. e5 {[%clk 0:01:35]}  fxe2 {[%clk 0:00:40]} 32. Qxe2 {[%clk 0:01:34]}  Bxe5 {[%clk 0:00:19]} 33. Qe4 {[%clk 0:01:29]}  Qf6 {[%clk 0:00:16]} 34. R7h6 {[%clk 0:01:22]}  Qf7 {[%clk 0:00:07]} 35. Rg6+ {[%clk 0:01:18]}  Bg7 {[%clk 0:00:05]} 36. Rxg5 {[%clk 0:01:18]}  Qf6 {[%clk 0:00:04]} 37. Qh7+ {[%clk 0:01:12]}  Kf7 {[%clk 0:00:05]} 38. Rf5 {[%clk 0:01:13]}  Rxd5 {[%clk 0:00:03]} 39. Rxf6+ {[%clk 0:01:10]}  Kxf6 {[%clk 0:00:03]} 40. Rf1+ {[%clk 0:01:10]}  Ke6 {[%clk 0:00:04]} 41. Rxf8 {[%clk 0:01:08]}  Bxf8 {[%clk 0:00:02]} 42. Qg8+ {[%clk 0:01:07]}  Ke5 {[%clk 0:00:03]} 43. Qxf8 {[%clk 0:01:06]}  Kd4 {[%clk 0:00:03]} 44. Qf2+ {[%clk 0:01:05]}  Kc4 {[%clk 0:00:03]} 45. Qc2+ {[%clk 0:01:03]}  Kd4 {[%clk 0:00:04]} 46. Qd2+ {[%clk 0:01:03]}  Kc4 {[%clk 0:00:04]} 47. Qe2+ {[%clk 0:01:03]}  Kd4 {[%clk 0:00:04]} 48. g5 {[%clk 0:01:03]}  b4 {[%clk 0:00:02]} 49. axb4 {[%clk 0:01:02]}  a3 {[%clk 0:00:02]} 50. bxa3 {[%clk 0:01:02]}  Rf5 {[%clk 0:00:01]} 51. g6 {[%clk 0:01:01]}  Kc3 {[%clk 0:00:02]} 52. g7 {[%clk 0:01:00]} 1-0


[Site "https://www.chess.com"]

[Event "Titled Tuesday Blitz May 4 2021"]
[White "Hartikainen, Jarmo"]
[Black "Pasti, Aron"]
[WhiteFideId "503134"]
[BlackFideId "785857"]
[WhiteElo "2084"]
[BlackElo "2082"]
[Result "1-0"]
[Round "08"]
[TimeControl "180+1"]
[Date "2021.05.04"]
[WhiteClock "0:00:07"]
[BlackClock "0:00:02"]

1. e4 {[%clk 0:03:00]}  e5 {[%clk 0:02:58]} 2. Nf3 {[%clk 0:03:00]}  Nc6 {[%clk 0:02:36]} 3. Bc4 {[%clk 0:03:00]}  Nf6 {[%clk 0:02:30]} 4. Ng5 {[%clk 0:02:59]}  d5 {[%clk 0:02:23]} 5. exd5 {[%clk 0:02:58]}  Na5 {[%clk 0:02:23]} 6. Bb5+ {[%clk 0:02:58]}  Bd7 {[%clk 0:02:22]} 7. Bxd7+ {[%clk 0:02:41]}  Qxd7 {[%clk 0:02:20]} 8. Nc3 {[%clk 0:02:33]}  Be7 {[%clk 0:02:17]} 9. Qf3 {[%clk 0:02:20]}  O-O {[%clk 0:02:14]} 10. d3 {[%clk 0:02:14]}  Rad8 {[%clk 0:02:06]} 11. Bd2 {[%clk 0:02:06]}  Nxd5 {[%clk 0:01:31]} 12. Nxd5 {[%clk 0:01:45]}  Qxd5 {[%clk 0:01:24]} 13. O-O {[%clk 0:01:39]}  Bxg5 {[%clk 0:01:06]} 14. Bxg5 {[%clk 0:01:10]}  e4 {[%clk 0:00:57]} 15. Qg3 {[%clk 0:00:49]}  Rd6 {[%clk 0:00:24]} 16. dxe4 {[%clk 0:00:42]}  Qxe4 {[%clk 0:00:22]} 17. Qc3 {[%clk 0:00:21]}  Nc6 {[%clk 0:00:20]} 18. Rae1 {[%clk 0:00:19]}  Qg6 {[%clk 0:00:19]} 19. Be3 {[%clk 0:00:19]}  Re8 {[%clk 0:00:13]} 20. Bf4 {[%clk 0:00:15]}  Rxe1 {[%clk 0:00:12]} 21. Rxe1 {[%clk 0:00:15]}  Re6 {[%clk 0:00:06]} 22. Bxc7 {[%clk 0:00:13]}  Qf5 {[%clk 0:00:02]} 23. Bg3 {[%clk 0:00:08]}  Rxe1+ {[%clk 0:00:02]} 24. Qxe1 {[%clk 0:00:08]}  Qe6 {[%clk 0:00:03]} 25. Qxe6 {[%clk 0:00:08]}  fxe6 {[%clk 0:00:04]} 26. Kf1 {[%clk 0:00:08]}  Kf7 {[%clk 0:00:04]} 27. c3 {[%clk 0:00:09]}  Ke7 {[%clk 0:00:05]} 28. Ke2 {[%clk 0:00:08]}  Kf6 {[%clk 0:00:06]} 29. Kd2 {[%clk 0:00:08]}  Kf5 {[%clk 0:00:06]} 30. Kd3 {[%clk 0:00:09]}  e5 {[%clk 0:00:06]} 31. f3 {[%clk 0:00:09]}  g5 {[%clk 0:00:05]} 32. Bf2 {[%clk 0:00:09]}  h5 {[%clk 0:00:04]} 33. b4 {[%clk 0:00:09]}  g4 {[%clk 0:00:04]} 34. b5 {[%clk 0:00:09]}  Ne7 {[%clk 0:00:02]} 35. fxg4+ {[%clk 0:00:09]}  hxg4 {[%clk 0:00:02]} 36. Bxa7 {[%clk 0:00:10]}  e4+ {[%clk 0:00:02]} 37. Ke2 {[%clk 0:00:09]}  Nd5 {[%clk 0:00:03]} 38. c4 {[%clk 0:00:08]}  Nc3+ {[%clk 0:00:03]} 39. Ke3 {[%clk 0:00:09]}  Nd1+ {[%clk 0:00:02]} 40. Kd2 {[%clk 0:00:08]}  Nb2 {[%clk 0:00:03]} 41. c5 {[%clk 0:00:08]}  Kf4 {[%clk 0:00:02]} 42. c6 {[%clk 0:00:08]}  bxc6 {[%clk 0:00:02]} 43. Bb8+ {[%clk 0:00:08]}  Kf5 {[%clk 0:00:02]} 44. bxc6 {[%clk 0:00:08]}  Nc4+ {[%clk 0:00:02]} 45. Kc3 {[%clk 0:00:07]}  e3 {[%clk 0:00:02]} 46. c7 {[%clk 0:00:06]}  Nd6 {[%clk 0:00:01]} 47. Kd3 {[%clk 0:00:06]}  Nc8 {[%clk 0:00:02]} 48. Ke2 {[%clk 0:00:06]}  Kf4 {[%clk 0:00:02]} 49. g3+ {[%clk 0:00:06]}  Ke4 {[%clk 0:00:02]} 50. a4 {[%clk 0:00:07]}  Nd6 {[%clk 0:00:01]} 51. a5 {[%clk 0:00:06]}  Nc8 {[%clk 0:00:01]} 52. a6 {[%clk 0:00:06]}  Nd6 {[%clk 0:00:01]} 53. a7 {[%clk 0:00:07]}  Nc8 {[%clk 0:00:02]} 54. a8=Q+ {[%clk 0:00:07]} 1-0


[Site "https://www.chess.com"]

[Event "Titled Tuesday Blitz May 4 2021"]
[White "Hess, Robert"]
[Black "Angel_Hranitel_37"]
[WhiteFideId "2022036"]
[WhiteElo "2557"]
[BlackElo "2553"]
[Result "1-0"]
[Round "08"]
[TimeControl "180+1"]
[Date "2021.05.04"]
[WhiteClock "0:00:07"]
[BlackClock "0:00:01"]

1. b3 {[%clk 0:03:00]}  e5 {[%clk 0:02:58]} 2. Bb2 {[%clk 0:02:59]}  Nc6 {[%clk 0:02:59]} 3. h3 {[%clk 0:02:57]}  g6 {[%clk 0:02:59]} 4. e3 {[%clk 0:02:57]}  Bg7 {[%clk 0:03:00]} 5. Ne2 {[%clk 0:02:57]}  Nge7 {[%clk 0:03:00]} 6. d3 {[%clk 0:02:58]}  O-O {[%clk 0:03:01]} 7. Nd2 {[%clk 0:02:59]}  d5 {[%clk 0:03:01]} 8. g3 {[%clk 0:02:59]}  Be6 {[%clk 0:02:56]} 9. Bg2 {[%clk 0:02:59]}  Qd7 {[%clk 0:02:55]} 10. a3 {[%clk 0:02:56]}  Rae8 {[%clk 0:02:37]} 11. Nf3 {[%clk 0:02:50]}  Nc8 {[%clk 0:02:37]} 12. Ng5 {[%clk 0:02:48]}  Nd6 {[%clk 0:02:34]} 13. Qd2 {[%clk 0:02:44]}  a5 {[%clk 0:02:14]} 14. O-O {[%clk 0:02:39]}  h6 {[%clk 0:02:00]} 15. Nxe6 {[%clk 0:02:39]}  Qxe6 {[%clk 0:02:01]} 16. c4 {[%clk 0:02:31]}  d4 {[%clk 0:01:50]} 17. exd4 {[%clk 0:02:22]}  exd4 {[%clk 0:01:43]} 18. Nf4 {[%clk 0:02:18]}  Qf5 {[%clk 0:01:32]} 19. Nd5 {[%clk 0:01:46]}  Ne5 {[%clk 0:01:18]} 20. Nxc7 {[%clk 0:01:30]}  Rc8 {[%clk 0:01:01]} 21. Nd5 {[%clk 0:01:30]}  Rfe8 {[%clk 0:00:40]} 22. Bxd4 {[%clk 0:01:28]}  Qxd3 {[%clk 0:00:21]} 23. Qxd3 {[%clk 0:01:08]}  Nxd3 {[%clk 0:00:22]} 24. Nf6+ {[%clk 0:01:04]}  Bxf6 {[%clk 0:00:22]} 25. Bxf6 {[%clk 0:01:05]}  Nc5 {[%clk 0:00:19]} 26. Rab1 {[%clk 0:00:28]}  a4 {[%clk 0:00:18]} 27. b4 {[%clk 0:00:28]}  Nce4 {[%clk 0:00:18]} 28. Ba1 {[%clk 0:00:28]}  Nd2 {[%clk 0:00:16]} 29. c5 {[%clk 0:00:17]}  Nb5 {[%clk 0:00:09]} 30. Bxb7 {[%clk 0:00:17]}  Rc7 {[%clk 0:00:04]} 31. Rbe1 {[%clk 0:00:12]}  Rxe1 {[%clk 0:00:03]} 32. Rxe1 {[%clk 0:00:12]}  f5 {[%clk 0:00:02]} 33. Bd5+ {[%clk 0:00:11]}  Kf8 {[%clk 0:00:01]} 34. Re2 {[%clk 0:00:07]} 1-0


[Site "https://www.chess.com"]

[Event "Titled Tuesday Blitz May 4 2021"]
[White "Ivanisevic, Ivan"]
[Black "Song, Michael"]
[WhiteFideId "912417"]
[BlackFideId "2613190"]
[WhiteElo "2525"]
[BlackElo "2274"]
[Result "1-0"]
[Round "08"]
[TimeControl "180+1"]
[Date "2021.05.04"]
[WhiteClock "0:01:36"]
[BlackClock "0:00:02"]

1. d4 {[%clk 0:03:00]}  f5 {[%clk 0:02:59]} 2. c4 {[%clk 0:03:01]}  Nf6 {[%clk 0:03:00]} 3. Nc3 {[%clk 0:03:01]}  g6 {[%clk 0:03:00]} 4. h4 {[%clk 0:03:01]}  Bg7 {[%clk 0:02:57]} 5. h5 {[%clk 0:02:57]}  Nxh5 {[%clk 0:02:57]} 6. e4 {[%clk 0:02:54]}  Nf6 {[%clk 0:02:50]} 7. exf5 {[%clk 0:02:50]}  gxf5 {[%clk 0:02:49]} 8. Bd3 {[%clk 0:02:50]}  e6 {[%clk 0:02:48]} 9. Bg5 {[%clk 0:02:49]}  h6 {[%clk 0:02:41]} 10. Bh4 {[%clk 0:02:40]}  Nc6 {[%clk 0:02:37]} 11. Nf3 {[%clk 0:02:38]}  d6 {[%clk 0:02:33]} 12. Qe2 {[%clk 0:02:35]}  Ne7 {[%clk 0:01:43]} 13. O-O-O {[%clk 0:02:34]}  O-O {[%clk 0:01:38]} 14. g4 {[%clk 0:02:27]}  fxg4 {[%clk 0:01:25]} 15. Ne5 {[%clk 0:02:17]}  Nf5 {[%clk 0:00:33]} 16. Bxf5 {[%clk 0:01:51]}  exf5 {[%clk 0:00:30]} 17. Ng6 {[%clk 0:01:51]}  Re8 {[%clk 0:00:19]} 18. Qd2 {[%clk 0:01:50]}  Kf7 {[%clk 0:00:17]} 19. Nf4 {[%clk 0:01:47]}  Qd7 {[%clk 0:00:13]} 20. Bxf6 {[%clk 0:01:42]}  Bxf6 {[%clk 0:00:13]} 21. Rxh6 {[%clk 0:01:41]}  Bg7 {[%clk 0:00:05]} 22. Nh5 {[%clk 0:01:40]}  Bxh6 {[%clk 0:00:03]} 23. Qxh6 {[%clk 0:01:39]}  Rg8 {[%clk 0:00:02]} 24. Qf6+ {[%clk 0:01:36]} 1-0


[Site "https://www.chess.com"]

[Event "Titled Tuesday Blitz May 4 2021"]
[White "Jacobson, Brandon"]
[Black "Shimelkov, Vasiliy"]
[WhiteFideId "30901561"]
[BlackFideId "13701630"]
[WhiteElo "2362"]
[BlackElo "2073"]
[Result "1/2-1/2"]
[Round "08"]
[TimeControl "180+1"]
[Date "2021.05.04"]
[WhiteClock "0:00:03"]
[BlackClock "0:00:21"]

1. d4 {[%clk 0:02:49]}  d5 {[%clk 0:02:59]} 2. c4 {[%clk 0:02:49]}  e6 {[%clk 0:02:59]} 3. Nf3 {[%clk 0:02:48]}  Nf6 {[%clk 0:02:58]} 4. g3 {[%clk 0:02:48]}  dxc4 {[%clk 0:02:58]} 5. Bg2 {[%clk 0:02:49]}  Nc6 {[%clk 0:02:57]} 6. Qa4 {[%clk 0:02:48]}  Bb4+ {[%clk 0:02:56]} 7. Bd2 {[%clk 0:02:49]}  Nd5 {[%clk 0:02:54]} 8. Bxb4 {[%clk 0:02:39]}  Nxb4 {[%clk 0:02:53]} 9. O-O {[%clk 0:02:29]}  O-O {[%clk 0:02:47]} 10. a3 {[%clk 0:02:11]}  Nd5 {[%clk 0:02:47]} 11. Qxc4 {[%clk 0:02:11]}  Nb6 {[%clk 0:02:46]} 12. Qc3 {[%clk 0:02:03]}  Bd7 {[%clk 0:02:47]} 13. Nbd2 {[%clk 0:01:59]}  Ne7 {[%clk 0:02:44]} 14. Ne5 {[%clk 0:01:54]}  Nbd5 {[%clk 0:02:41]} 15. Qb3 {[%clk 0:01:49]}  Rb8 {[%clk 0:02:31]} 16. Rfc1 {[%clk 0:01:32]}  c6 {[%clk 0:02:27]} 17. Ne4 {[%clk 0:01:30]}  Be8 {[%clk 0:02:22]} 18. Nc5 {[%clk 0:01:26]}  b6 {[%clk 0:02:18]} 19. Ncd3 {[%clk 0:01:16]}  f6 {[%clk 0:02:14]} 20. Nc4 {[%clk 0:01:11]}  Bf7 {[%clk 0:02:10]} 21. Rd1 {[%clk 0:01:08]}  b5 {[%clk 0:01:54]} 22. Nd2 {[%clk 0:01:03]}  e5 {[%clk 0:01:50]} 23. Qc2 {[%clk 0:00:41]}  exd4 {[%clk 0:01:49]} 24. Nb3 {[%clk 0:00:41]}  Nb6 {[%clk 0:01:41]} 25. Ndc5 {[%clk 0:00:37]}  d3 {[%clk 0:01:35]} 26. Rxd3 {[%clk 0:00:36]}  Qc8 {[%clk 0:01:30]} 27. Nd4 {[%clk 0:00:31]}  Bc4 {[%clk 0:01:25]} 28. Rdd1 {[%clk 0:00:26]}  Rd8 {[%clk 0:01:22]} 29. Rac1 {[%clk 0:00:24]}  a5 {[%clk 0:01:17]} 30. b3 {[%clk 0:00:24]}  Bf7 {[%clk 0:01:17]} 31. Be4 {[%clk 0:00:24]}  h6 {[%clk 0:01:14]} 32. h4 {[%clk 0:00:24]}  Nbd5 {[%clk 0:01:10]} 33. Nd3 {[%clk 0:00:19]}  b4 {[%clk 0:01:06]} 34. axb4 {[%clk 0:00:16]}  axb4 {[%clk 0:01:05]} 35. Nc5 {[%clk 0:00:12]}  Nc3 {[%clk 0:01:03]} 36. Nf5 {[%clk 0:00:13]}  Nxf5 {[%clk 0:00:56]} 37. Bxf5 {[%clk 0:00:13]}  Rxd1+ {[%clk 0:00:54]} 38. Rxd1 {[%clk 0:00:14]}  Qe8 {[%clk 0:00:54]} 39. Rd2 {[%clk 0:00:09]}  Ra8 {[%clk 0:00:52]} 40. Kg2 {[%clk 0:00:05]}  Ra2 {[%clk 0:00:49]} 41. Qc1 {[%clk 0:00:04]}  Bd5+ {[%clk 0:00:46]} 42. e4 {[%clk 0:00:03]}  Rxd2 {[%clk 0:00:45]} 43. Qxd2 {[%clk 0:00:04]}  Nxe4 {[%clk 0:00:44]} 44. Nxe4 {[%clk 0:00:02]}  Bxe4+ {[%clk 0:00:44]} 45. Bxe4 {[%clk 0:00:03]}  Qxe4+ {[%clk 0:00:44]} 46. f3 {[%clk 0:00:03]}  Qe6 {[%clk 0:00:41]} 47. Qxb4 {[%clk 0:00:03]}  Qe2+ {[%clk 0:00:39]} 48. Kh3 {[%clk 0:00:03]}  Qxf3 {[%clk 0:00:38]} 49. Qc4+ {[%clk 0:00:04]}  Kh8 {[%clk 0:00:33]} 50. b4 {[%clk 0:00:03]}  h5 {[%clk 0:00:31]} 51. Kh2 {[%clk 0:00:01]}  Qf2+ {[%clk 0:00:29]} 52. Kh3 {[%clk 0:00:02]}  Qf5+ {[%clk 0:00:27]} 53. Kh2 {[%clk 0:00:02]}  Kh7 {[%clk 0:00:27]} 54. Qxc6 {[%clk 0:00:02]}  Qd3 {[%clk 0:00:22]} 55. b5 {[%clk 0:00:01]}  Qe2+ {[%clk 0:00:22]} 56. Kg1 {[%clk 0:00:02]}  Qe1+ {[%clk 0:00:21]} 57. Kg2 {[%clk 0:00:03]}  Qe2+ {[%clk 0:00:21]} 58. Kh3 {[%clk 0:00:02]}  Qf1+ {[%clk 0:00:21]} 59. Kh2 {[%clk 0:00:02]}  Qe2+ {[%clk 0:00:21]} 60. Kh1 {[%clk 0:00:03]}  Qf1+ {[%clk 0:00:21]} 61. Kh2 {[%clk 0:00:03]}  Qe2+ {[%clk 0:00:21]} 1/2-1/2


[Site "https://www.chess.com"]